[Event "Torneo Nuevo Centro. Jornada 8"]
[Site "Chess.com"]
[Date "2020.08.07"]
[Round "2"]
[White "Martínez Escandell, Alfonso"]
[Black "Gil López, Alejandro"]
[Result "0-1"]
[WhiteElo "1834"]
[BlackElo "2208"]
[TimeControl "180+2"]
[EndTime "10:49:57 PDT"]
[Termination "Victoria de AglVal0313 por abandono"]

1. e4 {[%clk 0:03:01.9]} 1... c5 {[%clk 0:03:01.2]} 2. Nf3 {[%clk 0:03:02.7]}
2... g6 {[%clk 0:03:02.1]} 3. d4 {[%clk 0:03:04.5]} 3... Bg7 {[%clk 0:03:02.2]}
4. c3 {[%clk 0:02:58.3]} 4... cxd4 {[%clk 0:03:02.6]} 5. cxd4 {[%clk 0:02:59.2]}
5... Nc6 {[%clk 0:03:02.5]} 6. Nc3 {[%clk 0:02:59.3]} 6... d6 {[%clk 0:03:03.3]}
7. Bb5 {[%clk 0:02:58.2]} 7... Bd7 {[%clk 0:03:03.6]} 8. O-O {[%clk 0:02:58.5]}
8... Nf6 {[%clk 0:03:03.9]} 9. d5 {[%clk 0:02:56.5]} 9... Nb8 {[%clk 0:02:59.2]}
10. Bxd7+ {[%clk 0:02:55.4]} 10... Nbxd7 {[%clk 0:03:01.1]} 11. Bg5 {[%clk
0:02:55.3]} 11... O-O {[%clk 0:03:01.5]} 12. Qd2 {[%clk 0:02:56.3]} 12... Nc5
{[%clk 0:02:54.6]} 13. Rfe1 {[%clk 0:02:52.3]} 13... Rc8 {[%clk 0:02:52.7]} 14.
Bh6 {[%clk 0:02:51.1]} 14... Qb6 {[%clk 0:02:47]} 15. Bxg7 {[%clk 0:02:50.7]}
15... Kxg7 {[%clk 0:02:48.9]} 16. Rab1 {[%clk 0:02:44.2]} 16... Qb4 {[%clk
0:02:43.2]} 17. a3 {[%clk 0:02:42]} 17... Qb6 {[%clk 0:02:27.4]} 18. b4 {[%clk
0:02:40.9]} 18... Ncd7 {[%clk 0:02:18.2]} 19. e5 {[%clk 0:02:27.1]} 19... Nxe5
{[%clk 0:02:13.9]} 20. Nxe5 {[%clk 0:02:27.2]} 20... dxe5 {[%clk 0:02:15.8]} 21.
Rxe5 {[%clk 0:02:26.3]} 21... Rc7 {[%clk 0:02:09.8]} 22. Rbe1 {[%clk 0:02:24.6]}
22... Rfc8 {[%clk 0:02:00.3]} 23. Na4 {[%clk 0:02:21.7]} 23... Qd6 {[%clk
0:01:55.8]} 24. Nc5 {[%clk 0:02:21.1]} 24... b6 {[%clk 0:01:52.3]} 25. Nb3
{[%clk 0:02:16.1]} 25... Ng4 {[%clk 0:01:49]} 26. f4 {[%clk 0:01:51]} 26... Nxe5
{[%clk 0:01:40.8]} 27. fxe5 {[%clk 0:01:52.4]} 27... Qd8 {[%clk 0:01:41.6]} 28.
Nd4 {[%clk 0:01:36.2]} 28... Rd7 {[%clk 0:01:41.7]} 29. d6 {[%clk 0:01:14.9]}
29... exd6 {[%clk 0:01:42.1]} 30. e6 {[%clk 0:01:15.1]} 30... Re7 {[%clk
0:01:38.8]} 31. exf7 {[%clk 0:01:08.1]} 31... Rxe1+ {[%clk 0:01:37.1]} 32. Qxe1
{[%clk 0:01:07.5]} 32... Qf6 {[%clk 0:01:38.1]} 33. f8=Q+ {[%clk 0:00:38.1]}
33... Kxf8 {[%clk 0:01:35.6]} 34. Nf3 {[%clk 0:00:34.4]} 34... Qe7 {[%clk
0:01:33.8]} 35. Qd2 {[%clk 0:00:31.8]} 35... Re8 {[%clk 0:01:30.5]} 36. Kh1
{[%clk 0:00:20.2]} 36... Kg7 {[%clk 0:01:26]} 37. h3 {[%clk 0:00:19.9]} 37... h6
{[%clk 0:01:06.4]} 38. Qd4+ {[%clk 0:00:20.7]} 38... Qf6 {[%clk 0:01:05.7]} 39.
Qd5 {[%clk 0:00:21.4]} 39... g5 {[%clk 0:01:00.7]} 40. Qb7+ {[%clk 0:00:21.3]}
40... Re7 {[%clk 0:01:02.1]} 41. Qd5 {[%clk 0:00:22.2]} 41... Kg6 {[%clk
0:00:57.1]} 42. Qd3+ {[%clk 0:00:22.3]} 42... Kg7 {[%clk 0:00:56.5]} 43. Nd4
{[%clk 0:00:22]} 43... Rf7 {[%clk 0:00:52.9]} 44. Nb5 {[%clk 0:00:21.4]} 44...
Qf1+ {[%clk 0:00:51.6]} 45. Qxf1 {[%clk 0:00:18.9]} 45... Rxf1+ {[%clk
0:00:53.5]} 46. Kh2 {[%clk 0:00:19.7]} 46... Ra1 {[%clk 0:00:54.2]} 47. Nxa7
{[%clk 0:00:18.5]} 47... Rxa3 {[%clk 0:00:55.5]} 48. Nc8 {[%clk 0:00:20.4]}
48... Rb3 {[%clk 0:00:52.7]} 49. Nxb6 {[%clk 0:00:21.2]} 49... Rxb4 {[%clk
0:00:53.2]} 50. Nc8 {[%clk 0:00:22]} 50... Rd4 {[%clk 0:00:52.7]} 51. Ne7 {[%clk
0:00:20.9]} 51... Kf6 {[%clk 0:00:51.9]} 52. Nc6 {[%clk 0:00:19.2]} 52... Rd1
{[%clk 0:00:49.9]} 53. Nb4 {[%clk 0:00:18.8]} 53... d5 {[%clk 0:00:50.4]} 0

[Event "Torneo Nuevo Centro. Jornada 8"]
[Site "Chess.com"]
[Date "2020.08.07"]
[Round "2"]
[White "Sos Andreu, Eric"]
[Black "Bercaru, Vlad Ionut"]
[Result "1-0"]
[WhiteElo "2545"]
[BlackElo "1877"]
[TimeControl "180+2"]
[EndTime "10:50:10 PDT"]
[Termination "Victoria de ericovski por jaque mate"]

1. d4 {[%clk 0:03:01.9]} 1... Nf6 {[%clk 0:02:59.7]} 2. c4 {[%clk 0:03:02.7]}
2... g6 {[%clk 0:03:00.4]} 3. Nc3 {[%clk 0:03:03.6]} 3... Bg7 {[%clk 0:03:01.6]}
4. e4 {[%clk 0:03:04.4]} 4... d6 {[%clk 0:03:02]} 5. Nf3 {[%clk 0:03:05.8]} 5...
O-O {[%clk 0:03:01.8]} 6. Be2 {[%clk 0:03:06.6]} 6... e5 {[%clk 0:03:02.9]} 7.
O-O {[%clk 0:03:07.5]} 7... Nc6 {[%clk 0:02:50]} 8. d5 {[%clk 0:03:08.2]} 8...
Ne7 {[%clk 0:02:50.6]} 9. b4 {[%clk 0:03:09.5]} 9... Ne8 {[%clk 0:02:46.4]} 10.
c5 {[%clk 0:03:09.4]} 10... f5 {[%clk 0:02:45]} 11. Nd2 {[%clk 0:03:10.7]} 11...
f4 {[%clk 0:02:43.8]} 12. a4 {[%clk 0:03:09.4]} 12... g5 {[%clk 0:02:22.9]} 13.
Ba3 {[%clk 0:03:07.9]} 13... Rf6 {[%clk 0:02:18.8]} 14. Nc4 {[%clk 0:02:55.8]}
14... Bf8 {[%clk 0:02:13.1]} 15. b5 {[%clk 0:02:55.4]} 15... Ng6 {[%clk
0:02:08.8]} 16. a5 {[%clk 0:02:52.1]} 16... dxc5 {[%clk 0:02:02.4]} 17. Rb1
{[%clk 0:02:17.4]} 17... b6 {[%clk 0:01:55.1]} 18. Bg4 {[%clk 0:02:09.7]} 18...
Nd6 {[%clk 0:01:43.1]} 19. Nd2 {[%clk 0:02:10]} 19... Kg7 {[%clk 0:01:24.1]} 20.
Bb2 {[%clk 0:02:03.6]} 20... Nf7 {[%clk 0:01:11.4]} 21. Na2 {[%clk 0:01:53.9]}
21... Bd6 {[%clk 0:01:06.9]} 22. Nc1 {[%clk 0:01:54.3]} 22... Qe7 {[%clk
0:00:56.8]} 23. Nd3 {[%clk 0:01:54.4]} 23... Bxg4 {[%clk 0:00:48.7]} 24. Qxg4
{[%clk 0:01:56.3]} 24... Rh8 {[%clk 0:00:41.9]} 25. Qh5 {[%clk 0:01:33.7]} 25...
Nh4 {[%clk 0:00:33.7]} 26. Nc4 {[%clk 0:01:29.9]} 26... Rh6 {[%clk 0:00:32.6]}
27. Qg4 {[%clk 0:01:29]} 27... Ng6 {[%clk 0:00:32.3]} 28. g3 {[%clk 0:01:26.1]}
28... Qe8 {[%clk 0:00:28.2]} 29. axb6 {[%clk 0:01:23.3]} 29... axb6 {[%clk
0:00:28.1]} 30. Ra1 {[%clk 0:01:20.5]} 30... Qc8 {[%clk 0:00:28.3]} 31. Qxc8
{[%clk 0:01:18.2]} 31... Rxc8 {[%clk 0:00:30.2]} 32. Ra7 {[%clk 0:01:18.7]}
32... fxg3 {[%clk 0:00:29.9]} 33. hxg3 {[%clk 0:01:20.6]} 33... Rh3 {[%clk
0:00:29.1]} 34. Kg2 {[%clk 0:01:21]} 34... Rh6 {[%clk 0:00:29.1]} 35. Rfa1
{[%clk 0:01:06.6]} 35... g4 {[%clk 0:00:28.2]} 36. Ra8 {[%clk 0:00:59.6]} 36...
Rxa8 {[%clk 0:00:27.2]} 37. Rxa8 {[%clk 0:01:01.5]} 37... Rh5 {[%clk 0:00:25]}
38. Ne3 {[%clk 0:00:45.8]} 38... Kf6 {[%clk 0:00:24.5]} 39. Nxg4+ {[%clk
0:00:46.6]} 39... Kg5 {[%clk 0:00:21.5]} 40. f3 {[%clk 0:00:46.7]} 40... Nh6
{[%clk 0:00:20.1]} 41. Ngxe5 {[%clk 0:00:44.9]} 41... Nxe5 {[%clk 0:00:20.7]}
42. Nxe5 {[%clk 0:00:45.6]} 42... Bxe5 {[%clk 0:00:22]} 43. Bxe5 {[%clk
0:00:47.1]} 43... Kg6 {[%clk 0:00:22.9]} 44. Bxc7 {[%clk 0:00:45.5]} 44... Nf7
{[%clk 0:00:22.9]} 45. f4 {[%clk 0:00:42.9]} 45... Rh6 {[%clk 0:00:22.7]} 46.
Rg8+ {[%clk 0:00:29.9]} 46... Kf6 {[%clk 0:00:22.1]} 47. e5+ {[%clk 0:00:31.3]}
47... Ke7 {[%clk 0:00:22]} 48. e6 {[%clk 0:00:27.9]} 48... Nd6 {[%clk
0:00:13.6]} 49. Bxd6+ {[%clk 0:00:16.8]} 49... Kxd6 {[%clk 0:00:13.6]} 50. Rd8+
{[%clk 0:00:18.4]} 50... Ke7 {[%clk 0:00:14.2]} 51. Rd7+ {[%clk 0:00:18.9]}
51... Kf6 {[%clk 0:00:13.9]} 52. g4 {[%clk 0:00:19.6]} 52... Rg6 {[%clk
0:00:13.8]} 53. Rf7# {[%clk 0:00:19.5]} 1

[Event "Torneo Nuevo Centro. Jornada 8"]
[Site "Chess.com"]
[Date "2020.08.07"]
[Round "2"]
[White "Rodriguez Rodriguez, Joan David "]
[Black "Méndez Giménez , Néstor Emmanuel"]
[Result "1-0"]
[WhiteElo "1712"]
[BlackElo "1184"]
[TimeControl "180+2"]
[EndTime "10:51:56 PDT"]
[Termination "Victoria de Not_Jr_chess por jaque mate"]

1. d4 {[%clk 0:03:01.9]} 1... e6 {[%clk 0:03:00.3]} 2. c4 {[%clk 0:03:02.8]}
2... d5 {[%clk 0:03:00.7]} 3. Nc3 {[%clk 0:03:02.5]} 3... Nf6 {[%clk 0:03:00.6]}
4. cxd5 {[%clk 0:03:03.2]} 4... exd5 {[%clk 0:03:01.3]} 5. Bg5 {[%clk
0:03:03.8]} 5... Nc6 {[%clk 0:03:00.5]} 6. Bxf6 {[%clk 0:03:02]} 6... Qxf6
{[%clk 0:03:00.4]} 7. Nxd5 {[%clk 0:03:00.1]} 7... Qd6 {[%clk 0:02:52.6]} 8. e4
{[%clk 0:02:47.3]} 8... Be6 {[%clk 0:02:46.2]} 9. Nc3 {[%clk 0:02:28.9]} 9...
Nxd4 {[%clk 0:02:42.7]} 10. Nge2 {[%clk 0:02:16.5]} 10... Nxe2 {[%clk
0:02:34.9]} 11. Qxd6 {[%clk 0:02:14.7]} 11... Bxd6 {[%clk 0:02:33.9]} 12. Bxe2
{[%clk 0:02:16.3]} 12... O-O-O {[%clk 0:02:30.4]} 13. O-O {[%clk 0:02:09.5]}
13... h5 {[%clk 0:02:28.3]} 14. f4 {[%clk 0:02:06.9]} 14... h4 {[%clk
0:02:24.9]} 15. a3 {[%clk 0:01:46.3]} 15... h3 {[%clk 0:02:16.7]} 16. g3 {[%clk
0:01:35.6]} 16... Bc5+ {[%clk 0:02:10.4]} 17. Kh1 {[%clk 0:01:36.2]} 17... Rd2
{[%clk 0:02:02.6]} 18. f5 {[%clk 0:01:24.7]} 18... Bd7 {[%clk 0:01:54.3]} 19.
Bg4 {[%clk 0:01:08.4]} 19... f6 {[%clk 0:01:40.9]} 20. Nd5 {[%clk 0:00:40.2]}
20... Bc6 {[%clk 0:01:27.9]} 21. b4 {[%clk 0:00:37.6]} 21... Bd4 {[%clk
0:01:25.1]} 22. Ne7+ {[%clk 0:00:25.2]} 22... Kd8 {[%clk 0:01:17.5]} 23. Nxc6+
{[%clk 0:00:24.8]} 23... bxc6 {[%clk 0:01:17.8]} 24. Rad1 {[%clk 0:00:26.4]}
24... Bc3 {[%clk 0:01:10]} 25. Rxd2+ {[%clk 0:00:26.7]} 25... Bxd2 {[%clk
0:01:10.6]} 26. Rd1 {[%clk 0:00:28.6]} 26... Kc8 {[%clk 0:01:00.3]} 27. Rxd2
{[%clk 0:00:30.5]} 27... Kb7 {[%clk 0:01:00.7]} 28. Be2 {[%clk 0:00:27.7]} 28...
Kb6 {[%clk 0:00:59]} 29. a4 {[%clk 0:00:28]} 29... a5 {[%clk 0:00:59.6]} 30.
bxa5+ {[%clk 0:00:25.6]} 30... Kxa5 {[%clk 0:01:00.3]} 31. Bd1 {[%clk
0:00:24.6]} 31... Rb8 {[%clk 0:00:58.3]} 32. Kg1 {[%clk 0:00:24.2]} 32... Rb1
{[%clk 0:00:56.9]} 33. Kf2 {[%clk 0:00:23.8]} 33... Kb4 {[%clk 0:00:51.9]} 34.
Kf3 {[%clk 0:00:21.5]} 34... c5 {[%clk 0:00:51.7]} 35. Be2 {[%clk 0:00:14.1]}
35... c4 {[%clk 0:00:49.5]} 36. Rd4 {[%clk 0:00:13.7]} 36... Kc3 {[%clk
0:00:49.4]} 37. Rxc4+ {[%clk 0:00:14.5]} 37... Kb3 {[%clk 0:00:47.7]} 38. Rxc7
{[%clk 0:00:15.6]} 38... Kxa4 {[%clk 0:00:48.4]} 39. Rxg7 {[%clk 0:00:16.1]}
39... Rb3+ {[%clk 0:00:47.9]} 40. Kg4 {[%clk 0:00:17.1]} 40... Rb2 {[%clk
0:00:46.5]} 41. Bf3 {[%clk 0:00:17.2]} 41... Rxh2 {[%clk 0:00:45.5]} 42. Ra7+
{[%clk 0:00:15.5]} 42... Kb5 {[%clk 0:00:45.5]} 43. e5 {[%clk 0:00:16.1]} 43...
fxe5 {[%clk 0:00:45.9]} 44. f6 {[%clk 0:00:17]} 44... e4 {[%clk 0:00:28]} 45.
Bxe4 {[%clk 0:00:17.7]} 45... Rf2 {[%clk 0:00:23.8]} 46. Bf3 {[%clk 0:00:18.2]}
46... h2 {[%clk 0:00:23.3]} 47. f7 {[%clk 0:00:18.4]} 47... h1=Q {[%clk
0:00:22.9]} 48. Bxh1 {[%clk 0:00:19]} 48... Kb6 {[%clk 0:00:22.5]} 49. Re7
{[%clk 0:00:17.6]} 49... Kc5 {[%clk 0:00:19.9]} 50. Kg5 {[%clk 0:00:16.8]} 50...
Kd6 {[%clk 0:00:20.7]} 51. Ra7 {[%clk 0:00:17.2]} 51... Ke6 {[%clk 0:00:20.8]}
52. g4 {[%clk 0:00:12.2]} 52... Rf6 {[%clk 0:00:20.7]} 53. Bc6 {[%clk
0:00:06.6]} 53... Rxf7 {[%clk 0:00:14.5]} 54. Rxf7 {[%clk 0:00:06.8]} 54... Kxf7
{[%clk 0:00:15.3]} 55. Bd5+ {[%clk 0:00:08.6]} 55... Kg7 {[%clk 0:00:15]} 56.
Kf5 {[%clk 0:00:08.3]} 56... Kf8 {[%clk 0:00:15.3]} 57. Kf6 {[%clk 0:00:09]}
57... Ke8 {[%clk 0:00:15.6]} 58. g5 {[%clk 0:00:09.9]} 58... Kf8 {[%clk
0:00:16.6]} 59. g6 {[%clk 0:00:11.2]} 59... Ke8 {[%clk 0:00:17.7]} 60. g7 {[%clk
0:00:13.1]} 60... Kd7 {[%clk 0:00:17.8]} 61. g8=Q {[%clk 0:00:15]} 61... Kd6
{[%clk 0:00:18.3]} 62. Qe6+ {[%clk 0:00:16.9]} 62... Kc5 {[%clk 0:00:19.1]} 63.
Bf3 {[%clk 0:00:17.5]} 63... Kd4 {[%clk 0:00:19.5]} 64. Qd5+ {[%clk 0:00:18.5]}
64... Ke3 {[%clk 0:00:20.1]} 65. Kf5 {[%clk 0:00:19.4]} 65... Kf2 {[%clk
0:00:18.5]} 66. Bg4 {[%clk 0:00:18.4]} 66... Kg3 {[%clk 0:00:18.3]} 67. Kg5
{[%clk 0:00:16.7]} 67... Kh2 {[%clk 0:00:17.2]} 68. Qd2+ {[%clk 0:00:15.5]}
68... Kg3 {[%clk 0:00:17.3]} 69. Qe3+ {[%clk 0:00:16.5]} 69... Kg2 {[%clk
0:00:17]} 70. Qf3+ {[%clk 0:00:16.7]} 70... Kh2 {[%clk 0:00:16.5]} 71. Bh3
{[%clk 0:00:12.6]} 71... Kg1 {[%clk 0:00:02.2]} 72. Qg2# {[%clk 0:00:14.5]} 1

[Event "Torneo Nuevo Centro. Jornada 8"]
[Site "Chess.com"]
[Date "2020.08.07"]
[Round "3"]
[White "Marques Montolio, Luis"]
[Black "Roca Cruz, Rafael"]
[Result "0-1"]
[WhiteElo "1428"]
[BlackElo "1799"]
[TimeControl "180+2"]
[EndTime "10:53:40 PDT"]
[Termination "Victoria de RafaRocaCruz por abandono"]

1. e4 {[%clk 0:03:01.9]} 1... c5 {[%clk 0:03:01]} 2. Nf3 {[%clk 0:03:02.1]} 2...
e6 {[%clk 0:03:02.2]} 3. d4 {[%clk 0:03:01.5]} 3... cxd4 {[%clk 0:03:03.4]} 4.
Nxd4 {[%clk 0:03:03.4]} 4... Nf6 {[%clk 0:03:04.3]} 5. Nc3 {[%clk 0:03:01.4]}
5... Bb4 {[%clk 0:03:05]} 6. f3 {[%clk 0:03:01.7]} 6... d5 {[%clk 0:03:05]} 7.
exd5 {[%clk 0:02:56.4]} 7... Nxd5 {[%clk 0:03:05.6]} 8. Bd2 {[%clk 0:02:48.8]}
8... Qh4+ {[%clk 0:03:06.2]} 9. g3 {[%clk 0:02:47.2]} 9... Qxd4 {[%clk
0:03:06.8]} 10. Bb5+ {[%clk 0:02:42.3]} 10... Bd7 {[%clk 0:03:07.3]} 11. Nxd5
{[%clk 0:02:41.2]} 11... Bxd2+ {[%clk 0:03:05.4]} 12. Qxd2 {[%clk 0:02:39.7]}
12... Qxd2+ {[%clk 0:03:06.3]} 13. Kxd2 {[%clk 0:02:40.2]} 13... exd5 {[%clk
0:03:07.5]} 0

[Event "Torneo Nuevo Centro. Jornada 8"]
[Site "Chess.com"]
[Date "2020.08.07"]
[Round "3"]
[White "Miranda Calvo, Max Rodrigo"]
[Black "Grigorev, Artur "]
[Result "1-0"]
[WhiteElo "1350"]
[BlackElo "972"]
[TimeControl "180+2"]
[EndTime "10:54:58 PDT"]
[Termination "Victoria de bas-max-miranda por abandono"]

1. e4 {[%clk 0:03:01.9]} 1... e5 {[%clk 0:02:57.9]} 2. Nf3 {[%clk 0:03:03.6]}
2... Nc6 {[%clk 0:02:56.9]} 3. Bc4 {[%clk 0:03:02.8]} 3... Bc5 {[%clk 0:02:53]}
4. d3 {[%clk 0:03:00.7]} 4... Nf6 {[%clk 0:02:51.3]} 5. Bg5 {[%clk 0:02:59.2]}
5... h6 {[%clk 0:02:32.9]} 6. Bh4 {[%clk 0:02:50]} 6... d5 {[%clk 0:02:24.4]} 7.
exd5 {[%clk 0:02:47.6]} 7... Nxd5 {[%clk 0:02:25]} 8. Bxd8 {[%clk 0:02:46.3]}
8... Kxd8 {[%clk 0:02:25.1]} 9. Bxd5 {[%clk 0:02:44.5]} 9... Bg4 {[%clk
0:02:24.5]} 10. Nbd2 {[%clk 0:02:43.7]} 10... Nb4 {[%clk 0:02:22.4]} 11. Bxb7
{[%clk 0:02:37]} 11... Bxf3 {[%clk 0:02:17.4]} 12. Nxf3 {[%clk 0:02:34.7]} 12...
Rb8 {[%clk 0:02:15]} 13. c3 {[%clk 0:02:33.1]} 1

[Event "Torneo Nuevo Centro. Jornada 8"]
[Site "Chess.com"]
[Date "2020.08.07"]
[Round "3"]
[White "Donate Peris, Jose Manuel"]
[Black "Martin Ayala, David"]
[Result "0-1"]
[WhiteElo "1541"]
[BlackElo "1859"]
[TimeControl "180+2"]
[EndTime "10:55:17 PDT"]
[Termination "Victoria de martinayala por abandono"]

1. d4 {[%clk 0:03:01.9]} 1... e5 {[%clk 0:03:00.7]} 2. dxe5 {[%clk 0:03:01.5]}
2... d6 {[%clk 0:03:02.6]} 3. exd6 {[%clk 0:03:01.2]} 3... Bxd6 {[%clk
0:03:04.5]} 4. Nf3 {[%clk 0:02:57.6]} 4... Bg4 {[%clk 0:03:04.5]} 5. e4 {[%clk
0:02:55.2]} 5... Nc6 {[%clk 0:03:03.3]} 6. Be2 {[%clk 0:02:52.8]} 6... Qe7
{[%clk 0:03:01.6]} 7. Nc3 {[%clk 0:02:43.9]} 7... O-O-O {[%clk 0:03:01.9]} 8.
Bd2 {[%clk 0:02:34.7]} 8... Nf6 {[%clk 0:02:45.6]} 9. h3 {[%clk 0:02:35.1]} 9...
Bh5 {[%clk 0:02:41.2]} 10. Ng5 {[%clk 0:02:16.3]} 10... Bxe2 {[%clk 0:02:32.3]}
11. Qxe2 {[%clk 0:02:15]} 11... Nd4 {[%clk 0:02:33.3]} 12. Qd3 {[%clk
0:02:06.6]} 12... Be5 {[%clk 0:02:11]} 13. O-O-O {[%clk 0:02:01.7]} 13... Nb3+
{[%clk 0:02:08]} 14. axb3 {[%clk 0:01:58.7]} 14... Rxd3 {[%clk 0:02:07.9]} 0

[Event "Torneo Nuevo Centro. Jornada 8"]
[Site "Chess.com"]
[Date "2020.08.07"]
[Round "3"]
[White "Conon, Catalin"]
[Black "Pardo Ruiz, Carlos"]
[Result "1-0"]
[WhiteElo "1942"]
[BlackElo "1672"]
[TimeControl "180+2"]
[EndTime "10:56:20 PDT"]
[Termination "Victoria de CatalinConon por jaque mate"]

1. b3 {[%clk 0:03:00.4]} 1... e5 {[%clk 0:03:00]} 2. Bb2 {[%clk 0:02:57.8]} 2...
Nc6 {[%clk 0:03:01.4]} 3. e3 {[%clk 0:02:56.9]} 3... d5 {[%clk 0:03:01.4]} 4.
Bb5 {[%clk 0:02:58]} 4... Bd6 {[%clk 0:02:59.1]} 5. f4 {[%clk 0:02:59.1]} 5...
Qe7 {[%clk 0:02:53.8]} 6. Nf3 {[%clk 0:02:50.7]} 6... Bg4 {[%clk 0:02:48.7]} 7.
fxe5 {[%clk 0:02:50.4]} 7... Bxf3 {[%clk 0:02:47.5]} 8. Qxf3 {[%clk 0:02:52.3]}
8... Bxe5 {[%clk 0:02:47.5]} 9. d4 {[%clk 0:02:51]} 9... Bf6 {[%clk 0:02:41.7]}
10. O-O {[%clk 0:02:51.7]} 10... Nh6 {[%clk 0:02:40.1]} 11. Nc3 {[%clk
0:02:52.1]} 11... Rd8 {[%clk 0:02:27.2]} 12. Nxd5 {[%clk 0:02:52.8]} 12... Qd6
{[%clk 0:02:22.5]} 13. Nxf6+ {[%clk 0:02:52.8]} 13... gxf6 {[%clk 0:02:17]} 14.
Bxc6+ {[%clk 0:02:53.2]} 14... bxc6 {[%clk 0:02:17.2]} 15. Qxf6 {[%clk 0:02:54]}
15... Qxf6 {[%clk 0:02:18.1]} 16. Rxf6 {[%clk 0:02:55.9]} 16... Ng4 {[%clk
0:02:19.2]} 17. Rf3 {[%clk 0:02:55.5]} 17... Kd7 {[%clk 0:02:14.1]} 18. h3
{[%clk 0:02:56.3]} 18... Nh6 {[%clk 0:02:10.9]} 19. Raf1 {[%clk 0:02:57.5]}
19... Rde8 {[%clk 0:02:09.2]} 20. d5 {[%clk 0:02:54.7]} 20... Rhg8 {[%clk
0:02:06.1]} 21. dxc6+ {[%clk 0:02:53.2]} 21... Kxc6 {[%clk 0:02:04.4]} 22. Rf6+
{[%clk 0:02:54.7]} 22... Re6 {[%clk 0:02:02.2]} 23. Rxe6+ {[%clk 0:02:56.1]}
23... fxe6 {[%clk 0:02:03.4]} 24. Rf6 {[%clk 0:02:57.9]} 24... Rg6 {[%clk
0:02:03.2]} 25. Rxg6 {[%clk 0:02:58.8]} 25... hxg6 {[%clk 0:02:04.2]} 26. Kf2
{[%clk 0:03:00.7]} 26... Nf5 {[%clk 0:02:03.5]} 27. e4 {[%clk 0:03:01.5]} 27...
Nd6 {[%clk 0:02:02.4]} 28. Ke3 {[%clk 0:03:02.7]} 28... Kd7 {[%clk 0:02:01.2]}
29. h4 {[%clk 0:03:03.9]} 29... Ke7 {[%clk 0:02:01.5]} 30. Ba3 {[%clk
0:03:05.3]} 30... e5 {[%clk 0:01:59.5]} 31. Bxd6+ {[%clk 0:03:05.2]} 31... cxd6
{[%clk 0:02:01.4]} 32. g4 {[%clk 0:03:06.7]} 32... Kf6 {[%clk 0:01:57.5]} 33. c4
{[%clk 0:03:07.8]} 33... a5 {[%clk 0:01:55.5]} 34. a3 {[%clk 0:03:07.5]} 34...
g5 {[%clk 0:01:53]} 35. h5 {[%clk 0:03:08.4]} 35... Kg7 {[%clk 0:01:51.8]} 36.
b4 {[%clk 0:03:09.5]} 36... axb4 {[%clk 0:01:50.5]} 37. axb4 {[%clk 0:03:11.4]}
37... d5 {[%clk 0:01:51.1]} 38. b5 {[%clk 0:03:13.3]} 38... dxc4 {[%clk
0:01:51]} 39. b6 {[%clk 0:03:14.3]} 39... c3 {[%clk 0:01:51.1]} 40. b7 {[%clk
0:03:15.7]} 40... c2 {[%clk 0:01:51.4]} 41. Kd2 {[%clk 0:03:17.2]} 41... c1=Q+
{[%clk 0:01:52.4]} 42. Kxc1 {[%clk 0:03:18.2]} 42... Kh7 {[%clk 0:01:52.1]} 43.
b8=Q {[%clk 0:03:20.1]} 43... Kh6 {[%clk 0:01:53.6]} 44. Qxe5 {[%clk 0:03:21.5]}
44... Kh7 {[%clk 0:01:53.8]} 45. Qxg5 {[%clk 0:03:22.7]} 45... Kh8 {[%clk
0:01:54.3]} 46. h6 {[%clk 0:03:24]} 46... Kh7 {[%clk 0:01:54.8]} 47. Qg7# {[%clk
0:03:25.4]} 1

[Event "Torneo Nuevo Centro. Jornada 8"]
[Site "Chess.com"]
[Date "2020.08.07"]
[Round "3"]
[White "Hernández Tomás, Efrén"]
[Black "Rabbani Perez, Oumaima "]
[Result "1-0"]
[WhiteElo "1076"]
[BlackElo "620"]
[TimeControl "180+2"]
[EndTime "10:56:40 PDT"]
[Termination "Victoria de EfrenHT10 por jaque mate"]

1. e4 {[%clk 0:03:01.9]} 1... e6 {[%clk 0:02:59.9]} 2. Nf3 {[%clk 0:03:02.3]}
2... Nf6 {[%clk 0:02:59.1]} 3. d3 {[%clk 0:02:57.8]} 3... Bc5 {[%clk 0:02:59.4]}
4. Bg5 {[%clk 0:02:56.1]} 4... h6 {[%clk 0:02:54.9]} 5. Bh4 {[%clk 0:02:55]}
5... g5 {[%clk 0:02:51.6]} 6. Bg3 {[%clk 0:02:54.2]} 6... Ng4 {[%clk 0:02:48.8]}
7. h3 {[%clk 0:02:52.4]} 7... Nxf2 {[%clk 0:02:48.7]} 8. Bxf2 {[%clk 0:02:52.3]}
8... Bxf2+ {[%clk 0:02:48.3]} 9. Kxf2 {[%clk 0:02:53.1]} 9... Qe7 {[%clk
0:02:45.6]} 10. Ne5 {[%clk 0:02:48.8]} 10... Qc5+ {[%clk 0:02:44.8]} 11. d4
{[%clk 0:02:45.2]} 11... Qa5 {[%clk 0:02:29.2]} 12. Nc3 {[%clk 0:02:37.9]} 12...
c5 {[%clk 0:02:27.7]} 13. Qf3 {[%clk 0:02:34.1]} 13... cxd4 {[%clk 0:02:26.8]}
14. Qxf7+ {[%clk 0:02:33]} 14... Kd8 {[%clk 0:02:25.7]} 15. Qf6+ {[%clk
0:02:33.6]} 15... Ke8 {[%clk 0:02:21.5]} 16. Qxh8+ {[%clk 0:02:33.7]} 16... Ke7
{[%clk 0:02:21.1]} 17. Qg7+ {[%clk 0:02:26.1]} 17... Ke8 {[%clk 0:02:14.2]} 18.
Ne2 {[%clk 0:02:19.2]} 18... d3 {[%clk 0:02:11.7]} 19. cxd3 {[%clk 0:02:18.9]}
19... Qb6+ {[%clk 0:02:11.2]} 20. Ke1 {[%clk 0:02:15]} 20... Qa5+ {[%clk
0:02:09.7]} 21. Nc3 {[%clk 0:02:15.2]} 21... Nc6 {[%clk 0:02:01]} 22. Nxc6
{[%clk 0:02:14]} 22... bxc6 {[%clk 0:02:00.3]} 23. Be2 {[%clk 0:02:13.4]} 23...
Ba6 {[%clk 0:01:57.4]} 24. Qg8+ {[%clk 0:02:11.3]} 24... Ke7 {[%clk 0:01:54.4]}
25. Qxa8 {[%clk 0:02:11.5]} 25... Qc5 {[%clk 0:01:42.7]} 26. Rf1 {[%clk
0:02:00.5]} 26... Qe3 {[%clk 0:01:34.7]} 27. Qf8# {[%clk 0:01:58.3]} 1